lending/lending_fUSD_20260312
["ID","MTS","AMOUNT","RATE_DAILY","PERIOD"]
[408271614,1773337831420,-241.86758945,0.00014483,2]
[408271615,1773337831434,-58.13241055,0.00014483,2]
[408271616,1773337831447,-300.0,0.00014533,2]
[408271617,1773337831458,-30.96500074,0.00014533,2]
[408271618,1773337831473,-269.03499926,0.00014533,2]
[408271619,1773337831487,-53.55821462,0.00014534,2]
[408271620,1773337831499,-1483.02344022,0.00014534,2]
[408271621,1773337831511,-260.03248731,0.00014534,2]
[408271622,1773337831525,-252.17238759,0.00014534,2]
[408271623,1773337831537,-632.35347026,0.00014534,2]
[408271624,1773337831547,-600.0,0.00014546,2]
[408271625,1773337831559,-200.26183164,0.00014546,2]
[408271626,1773337831571,-399.73816836,0.00014546,2]
[408271627,1773337831582,-600.0,0.00014546,2]
[408271628,1773337831593,-4000.0,0.0001463,2]
[408271629,1773337831604,-300.0,0.00014651,2]
[408271630,1773337831615,-1130.49,0.00014676,2]
[408271632,1773337831625,-200.0,0.00014683,2]
[408271634,1773337831635,-150.0,0.00014742,2]
[408271636,1773337831647,-9999.99,0.00014742,2]
[408271637,1773337831658,-170.06447274,0.000149,2]
[408271639,1773337831671,-286.0,0.00014988,2]
[408271641,1773337831682,-1000.0,0.00014995,2]
[408271643,1773337831693,-150.0,0.00014995,2]
[408271645,1773337831703,-4000.0,0.00014996,2]
[408271647,1773337831712,-9999.99,0.00014996,2]
[408271649,1773337831723,-250.0,0.00015,2]
[408271651,1773337831733,-1003.45062288,0.0001501,2]
[408271653,1773337831743,-367.00971734,0.00015018,2]
[408271655,1773337831755,-1130.49,0.00015095,2]
[408271657,1773337831765,-500.0,0.00015164,2]
[408271659,1773337831775,-500.0,0.00015164,2]
[408271661,1773337831784,-150.0,0.00015164,2]
[408271663,1773337831794,-500.0,0.00015164,2]
[408271665,1773337831805,-500.0,0.00015164,2]
[408271667,1773337831815,-500.0,0.00015164,2]
[408271668,1773337831825,-500.0,0.00015164,2]
[408271669,1773337831835,-150.0,0.00015164,2]
[408271670,1773337831844,-150.0,0.00015164,2]
[408271671,1773337831854,-500.0,0.00015164,2]
[408271672,1773337831864,-150.0,0.00015164,2]
[408271673,1773337831874,-500.0,0.00015164,2]
[408271674,1773337831884,-545.0,0.00015164,2]
[408271675,1773337831894,-150.0,0.00015164,2]
[408271676,1773337831904,-500.0,0.00015164,2]
[408271677,1773337831918,-500.0,0.00015164,2]
[408271678,1773337831929,-500.0,0.00015164,2]
[408271679,1773337831939,-500.0,0.00015164,2]
[408271680,1773337831949,-500.0,0.00015164,2]
[408271681,1773337831960,-500.0,0.00015164,2]
[408271682,1773337831970,-500.0,0.00015164,2]
[408271683,1773337831980,-500.0,0.00015164,2]
[408271684,1773337831990,-500.0,0.00015164,2]
[408271685,1773337832002,-150.0,0.00015164,2]
[408271686,1773337832012,-500.0,0.00015164,2]
[408271687,1773337832022,-150.0,0.00015164,2]
[408271688,1773337832033,-500.0,0.00015164,2]
[408271689,1773337832043,-501.10057062,0.00015219,2]
[408271690,1773337832054,-500.0,0.00015219,2]
[408271691,1773337832063,-150.20209622,0.00015219,2]
[408271692,1773337832074,-500.0,0.00015219,2]
[408271693,1773337832084,-500.0,0.00015219,2]
[408271694,1773337832094,-500.0,0.00015219,2]
[408271695,1773337832106,-500.0,0.00015219,2]
[408271696,1773337832116,-500.0,0.00015219,2]
[408271697,1773337832126,-150.0,0.00015219,2]
[408271698,1773337832136,-500.0,0.00015219,2]
[408271699,1773337832147,-545.0,0.00015219,2]
[408271700,1773337832157,-150.0,0.00015219,2]
[408271701,1773337832167,-500.0,0.00015219,2]
[408271702,1773337832177,-500.0,0.00015219,2]
[408271703,1773337832187,-500.0,0.00015219,2]
[408271704,1773337832196,-500.0,0.00015219,2]
[408271705,1773337832206,-500.0,0.00015219,2]
[408271706,1773337832216,-500.0,0.00015219,2]
[408271707,1773337832226,-500.0,0.00015219,2]
[408271708,1773337832236,-500.0,0.00015219,2]
[408271709,1773337832247,-637.81160901,0.00015219,2]
[408271710,1773337832258,-150.0,0.00015219,2]
[408271711,1773337832267,-600.74757442,0.00015219,2]
[408271712,1773337832277,-150.0,0.00015219,2]
[408271713,1773337832288,-314.48543571,0.00015274,2]
[408271714,1773337832299,-500.0,0.00015274,2]
[408271715,1773337832308,-453.86401705,0.00015274,2]
[408271716,1773337832318,-159.8782102,0.00015274,2]
[408271717,1773337832327,-500.0,0.00015274,2]
[408271718,1773337832337,-151.97192574,0.00015274,2]
[408271719,1773337832347,-150.0,0.00015274,2]
[408271720,1773337832358,-156.83426636,0.00015274,2]
[408271721,1773337832368,-545.0,0.00015274,2]
[408271722,1773337832378,-150.0,0.00015274,2]
[408271723,1773337832388,-500.0,0.00015274,2]
[408271724,1773337832398,-500.0,0.00015274,2]
[408271725,1773337832410,-500.0,0.00015274,2]
[408271726,1773337832419,-500.0,0.00015274,2]
[408271727,1773337832431,-500.0,0.00015274,2]
[408271728,1773337832441,-500.0,0.00015274,2]
[408271729,1773337832454,-500.0,0.00015274,2]
[408271730,1773337832464,-601.04601421,0.00015274,2]
[408271731,1773337832473,-150.0,0.00015274,2]
[408271732,1773337832485,-150.0,0.00015274,2]
[408271733,1773337832495,-153.26158094,0.00015328,2]
[408271734,1773337832505,-500.0,0.00015328,2]
[408271735,1773337832515,-275.17021168,0.00015328,2]
[408271736,1773337832525,-545.0,0.00015328,2]
[408271737,1773337832535,-150.0,0.00015328,2]
[408271738,1773337832733,-500.0,0.00015328,2]
[408271739,1773337832743,-500.0,0.00015328,2]
[408271740,1773337832753,-500.0,0.00015328,2]
[408271741,1773337832763,-500.0,0.00015328,2]
[408271742,1773337832772,-500.0,0.00015328,2]
[408271743,1773337832783,-500.0,0.00015328,2]
[408271744,1773337832793,-500.0,0.00015328,2]
[408271745,1773337832803,-150.0,0.00015328,2]
[408271746,1773337832813,-150.0,0.00015328,2]
[408271747,1773337832822,-4000.0,0.00015362,2]
[408271748,1773337832833,-500.0,0.00015374,2]
[408271749,1773337832843,-500.0,0.00015374,2]
[408271750,1773337832852,-500.0,0.00015374,2]
[408271751,1773337832861,-500.0,0.00015374,2]
[408271752,1773337832871,-500.0,0.00015374,2]
[408271753,1773337832880,-500.0,0.00015374,2]
[408271754,1773337832889,-200.0,0.00015374,2]
[408271755,1773337832899,-500.0,0.00015374,2]
[408271756,1773337832908,-500.0,0.00015374,2]
[408271757,1773337832918,-500.0,0.00015374,2]
[408271758,1773337832927,-151.0,0.00015374,2]
[408271759,1773337832936,-151.0,0.00015374,2]
[408271760,1773337832945,-151.0,0.00015374,2]
[408271761,1773337832954,-151.0,0.00015374,2]
[408271762,1773337832964,-151.0,0.00015374,2]
[408271763,1773337832973,-151.0,0.00015374,2]
[408271764,1773337832982,-151.0,0.00015374,2]
[408271765,1773337832992,-151.0,0.00015374,2]
[408271766,1773337833002,-151.0,0.00015374,2]
[408271767,1773337833012,-236.39195199,0.00015374,2]
[408271768,1773337833021,-295.80018517,0.00015374,2]
[408271769,1773337833031,-500.0,0.00015383,2]
[408271770,1773337833040,-150.0,0.00015383,2]
[408271771,1773337833050,-150.0,0.00015383,2]
[408271772,1773337833059,-150.0,0.00015383,2]
[408271773,1773337833068,-154.6362155,0.00015383,2]
[408271774,1773337833078,-150.0,0.00015383,2]
[408271775,1773337833087,-150.0,0.00015383,2]
[408271776,1773337833096,-500.0,0.00015383,2]
[408271777,1773337833106,-500.0,0.00015383,2]
[408271778,1773337833115,-500.0,0.00015383,2]
[408271779,1773337833124,-150.81923528,0.00015383,2]
[408271780,1773337833133,-150.0,0.00015383,2]
[408271781,1773337833142,-150.0,0.00015383,2]
[408271782,1773337833151,-150.0,0.00015383,2]
[408271783,1773337833160,-500.0,0.00015383,2]
[408271784,1773337833169,-150.0,0.00015383,2]
[408271785,1773337833179,-211.07,0.00015383,2]
[408271786,1773337833188,-150.0,0.00015383,2]
[408271787,1773337833197,-839.83,0.00015383,2]
[408271788,1773337833207,-500.0,0.00015383,2]
[408271789,1773337833216,-545.0,0.00015383,2]
[408271790,1773337833226,-150.0,0.00015383,2]
[408271791,1773337833235,-500.0,0.00015383,2]
[408271792,1773337833245,-500.0,0.00015383,2]
[408271793,1773337833256,-150.0,0.00015383,2]
[408271794,1773337833265,-177.62322685,0.00015383,2]
[408271795,1773337833275,-500.0,0.00015383,2]
[408271796,1773337833284,-362.33399582,0.00015383,2]
[408271797,1773337833293,-500.0,0.00015383,2]
[408271798,1773337833302,-150.0,0.00015383,2]
[408271799,1773337833311,-150.51586392,0.00015383,2]
[408271800,1773337833320,-500.0,0.00015438,2]
[408271801,1773337833329,-150.38339506,0.00015438,2]
[408271802,1773337833338,-150.0,0.00015438,2]
[408271803,1773337833347,-150.0,0.00015438,2]
[408271804,1773337833356,-150.14054899,0.00015438,2]
[408271805,1773337833365,-150.0,0.00015438,2]
[408271806,1773337833374,-500.0,0.00015438,2]
[408271807,1773337833383,-500.0,0.00015438,2]
[408271808,1773337833392,-500.0,0.00015438,2]
[408271809,1773337833402,-151.17604602,0.00015438,2]
[408271810,1773337833415,-150.5231356,0.00015438,2]
[408271811,1773337833427,-150.36304931,0.00015438,2]
[408271812,1773337833436,-150.0,0.00015438,2]
[408271813,1773337833446,-506.37193097,0.00015438,2]
[408271814,1773337833456,-206.99792004,0.00015438,2]
[408271815,1773337833466,-450.0,0.00015438,2]
[408271816,1773337833476,-545.0,0.00015438,2]
[408271817,1773337833487,-250.0,0.00015438,2]
[408271818,1773337833497,-204.83861542,0.00015438,2]
[408271819,1773337833507,-500.0,0.00015438,2]
[408271820,1773337833516,-500.0,0.00015438,2]
[408271821,1773337833525,-500.0,0.00015438,2]
[408271822,1773337833535,-250.0,0.00015438,2]
[408271823,1773337833544,-500.0,0.00015438,2]
[408271824,1773337833553,-500.0,0.00015493,2]
[408271825,1773337833563,-150.0,0.00015493,2]
[408271826,1773337833574,-150.0,0.00015493,2]
[408271827,1773337833583,-200.0,0.00015493,2]
[408271828,1773337833592,-500.0,0.00015493,2]
[408271829,1773337833602,-500.0,0.00015493,2]
[408271830,1773337833611,-500.0,0.00015493,2]
[408271831,1773337833621,-150.0,0.00015493,2]
[408271832,1773337833631,-545.0,0.00015493,2]
[408271833,1773337833640,-500.0,0.00015493,2]
[408271834,1773337833651,-500.0,0.00015493,2]
[408271835,1773337833660,-500.0,0.00015493,2]
[408271836,1773337833670,-246.58,0.00015496,2]
[408271837,1773337833679,-1130.49,0.00015515,2]
[408271838,1773337833689,-4954.7721667,0.00015515,2]
[408271839,1773337833698,-552.0,0.00015547,2]
[408271840,1773337833708,-300.0,0.00015547,2]
[408271841,1773337833717,-300.0,0.00015547,2]
[408271842,1773337833726,-545.0,0.00015548,2]
[408271843,1773337833736,-500.0,0.00015548,2]
[408271844,1773337833746,-500.0,0.00015548,2]
[408271845,1773337833756,-500.0,0.00015548,2]
[408271846,1773337833765,-2784.96995036,0.00015557,2]
[408271847,1773337833779,-310.92784964,0.00015557,2]
[408271848,1773337833788,-2500.0,0.00015558,2]
[408271849,1773337833798,-5000.0,0.00015558,2]
[408271850,1773337833808,-163.31829815,0.00015573,2]
[408271851,1773337833817,-293.88039994,0.00015573,2]
[408271852,1773337833826,-10192.59362813,0.00015573,2]
[408271853,1773337833838,-3625.58942686,0.00015573,2]
[408271892,1773337839726,-557.94431981,0.00015573,2]
[408271893,1773337839782,-12484.62051479,0.00015573,2]
[408271894,1773337839793,-7100.0,0.000156,5]
[408271895,1773337839803,-545.0,0.00015602,2]
[408271896,1773337839813,-500.0,0.00015602,2]
[408271897,1773337839822,-500.0,0.00015602,2]
[408271898,1773337839831,-500.0,0.00015602,2]
[408271899,1773337839841,-152.17434478,0.00015611,2]
[408271900,1773337839851,-183.31458899,0.00015648,2]
[408271901,1773337839862,-151.0,0.00015655,2]
[408271902,1773337839872,-839.83,0.00015657,2]
[408271903,1773337839882,-545.0,0.00015657,2]
[408271904,1773337839892,-336.58574152,0.00015657,2]
[408271905,1773337839903,-267.0,0.00015657,2]
[408271906,1773337839915,-196.58439244,0.00015657,2]
[408271907,1773337839925,-500.0,0.00015657,2]
[408271908,1773337839934,-500.0,0.00015657,2]
[408271909,1773337839943,-500.0,0.00015657,2]
[408271910,1773337839952,-500.0,0.00015657,2]
[408271911,1773337839961,-500.0,0.00015657,2]
[408271912,1773337839969,-500.0,0.00015657,2]
[408271913,1773337839979,-500.0,0.00015657,2]
[408271914,1773337839987,-500.0,0.00015657,2]
[408271915,1773337839997,-500.0,0.00015657,2]
[408271916,1773337840006,-500.0,0.00015657,2]
[408271917,1773337840015,-500.0,0.00015657,2]
[408271918,1773337840024,-500.0,0.00015657,2]
[408271919,1773337840033,-500.0,0.00015657,2]
[408271920,1773337840043,-500.0,0.00015657,2]
[408271921,1773337840052,-500.0,0.00015657,2]
[408271922,1773337840062,-500.0,0.00015657,2]
[408271923,1773337840071,-500.0,0.00015657,2]
[408271924,1773337840079,-500.0,0.00015657,2]
[408271925,1773337840088,-500.0,0.00015657,2]
[408271926,1773337840097,-500.0,0.00015657,2]
[408271927,1773337840108,-500.0,0.00015657,2]
[408271928,1773337840117,-500.0,0.00015657,2]
[408271929,1773337840126,-500.0,0.00015657,2]
[408271930,1773337840135,-350.27044653,0.00015657,2]
[408271931,1773337840144,-500.0,0.00015657,2]
[408271932,1773337840153,-500.0,0.00015657,2]
[408271933,1773337840163,-500.0,0.00015657,2]
[408271934,1773337840173,-500.0,0.00015657,2]
[408271935,1773337840181,-500.0,0.00015657,2]
[408271936,1773337840191,-500.0,0.00015657,2]
[408271937,1773337840200,-500.0,0.00015657,2]
[408271938,1773337840209,-500.0,0.00015657,2]
[408271939,1773337840218,-500.0,0.00015657,2]
[408271940,1773337840227,-500.0,0.00015657,2]
[408271941,1773337840236,-500.0,0.00015657,2]
[408271942,1773337840245,-500.0,0.00015657,2]
[408271943,1773337840254,-500.0,0.00015657,2]
[408271944,1773337840263,-500.0,0.00015657,2]
[408271945,1773337840273,-500.0,0.00015657,2]
[408271946,1773337840283,-500.0,0.00015657,2]
[408271947,1773337840291,-500.0,0.00015657,2]
[408271948,1773337840301,-500.0,0.00015657,2]
[408271949,1773337840312,-500.0,0.00015657,2]
[408271950,1773337840322,-500.0,0.00015657,2]
[408271951,1773337840330,-500.0,0.00015657,2]
[408271952,1773337840340,-500.0,0.00015657,2]
[408271953,1773337840350,-500.0,0.00015657,2]
[408271954,1773337840359,-500.0,0.00015657,2]
[408271955,1773337840368,-500.0,0.00015657,2]
[408271956,1773337840377,-500.0,0.00015657,2]
[408271957,1773337840386,-500.0,0.00015657,2]
[408271959,1773337840395,-500.0,0.00015657,2]
[408271960,1773337840404,-500.0,0.00015657,2]
[408271961,1773337840416,-500.0,0.00015657,2]
[408271962,1773337840425,-500.0,0.00015657,2]
[408271963,1773337840434,-500.0,0.00015657,2]
[408271964,1773337840443,-500.0,0.00015657,2]
[408271965,1773337840455,-500.0,0.00015657,2]
[408271966,1773337840467,-400.0,0.00015657,2]
[408271967,1773337840479,-500.0,0.00015657,2]
[408271968,1773337840493,-500.0,0.00015657,2]
[408271969,1773337840504,-500.0,0.00015657,2]
[408271970,1773337840515,-172.57763114,0.00015657,2]
[408271971,1773337840525,-500.0,0.00015657,2]
[408271972,1773337840535,-561.03321247,0.00015657,2]
[408271973,1773337840545,-500.0,0.00015658,2]
[408271974,1773337840555,-500.0,0.00015658,2]
[408271975,1773337840566,-500.0,0.00015658,2]
[408271976,1773337840576,-500.0,0.00015658,2]
[408271977,1773337840587,-500.0,0.00015658,2]
[408271978,1773337840598,-500.0,0.00015658,2]
[408271979,1773337840609,-500.0,0.00015658,2]
[408271980,1773337840620,-500.0,0.00015658,2]
[408271981,1773337840633,-500.0,0.00015658,2]
[408271982,1773337840647,-500.0,0.00015658,2]
[408271983,1773337840661,-500.0,0.00015658,2]
[408271984,1773337840674,-500.0,0.00015658,2]
[408271985,1773337840686,-500.0,0.00015658,2]
[408271986,1773337840696,-500.0,0.00015658,2]
[408271987,1773337840707,-500.0,0.00015658,2]
[408271988,1773337840716,-500.0,0.00015658,2]
[408271989,1773337840725,-500.0,0.00015658,2]
[408271990,1773337840736,-521.6043228,0.00015658,2]
[408271991,1773337840747,-500.0,0.00015658,2]
[408271992,1773337840758,-500.0,0.00015658,2]
[408271993,1773337840769,-500.0,0.00015658,2]
[408271994,1773337840782,-611.60290379,0.00015658,2]
[408271995,1773337840792,-2500000.0,0.00015658,2]
[408271996,1773337840803,-371.73960843,0.00015673,2]
[408271997,1773337840814,-500.0,0.00015673,2]
[408271998,1773337840824,-500.0,0.00015673,2]
[408271999,1773337840834,-165.01569282,0.00015673,2]
[408272000,1773337840845,-500.37983606,0.00015673,2]
[408272001,1773337840855,-500.0,0.00015673,2]
[408272002,1773337840866,-500.0,0.00015673,2]
[408272003,1773337840877,-500.0,0.00015673,2]
[408272004,1773337840888,-500.28721314,0.00015673,2]
[408272005,1773337840899,-500.0,0.00015673,2]
[408272006,1773337840910,-500.0,0.00015673,2]
[408272007,1773337840921,-500.0,0.00015673,2]
[408272008,1773337840931,-500.0,0.00015673,2]
[408272009,1773337840941,-367.07901164,0.00015673,2]
[408272010,1773337840951,-500.0,0.00015673,2]
[408272011,1773337840961,-500.0,0.00015673,2]
[408272012,1773337840972,-500.0,0.00015673,2]
[408272013,1773337840981,-500.0,0.00015673,2]
[408272014,1773337840994,-164.00773729,0.00015673,2]
[408272015,1773337841004,-500.0,0.00015673,2]
[408272016,1773337841015,-271.0,0.00015681,2]
[408272017,1773337841025,-14300.0,0.000157,5]
[408272018,1773337841036,-397.32436798,0.00015711,2]
[408272019,1773337841048,-545.0,0.00015712,2]
[408272020,1773337841058,-26860.74788954,0.0001572,2]
[408272021,1773337841069,-4000.0,0.00015727,2]
[408272022,1773337841081,-593.78399239,0.00015729,2]
[408272023,1773337841091,-197.23311885,0.00015729,2]
[408272024,1773337841101,-545.0,0.00015767,2]
[408272025,1773337841112,-484.21,0.00015795,2]
[408272026,1773337841124,-310.0,0.00015798,2]
[408272027,1773337841135,-198.0,0.00015798,2]
[408272028,1773337841147,-21500.0,0.000158,5]
[408272029,1773337841159,-545.0,0.00015822,2]
[408272030,1773337841171,-1823.0,0.00015829,2]
[408272031,1773337841182,-332.0,0.00015829,2]
[408272032,1773337841192,-2000.0,0.00015834,2]
[408272033,1773337841203,-26860.74788954,0.00015868,2]
[408272034,1773337841214,-5000.0,0.00015876,2]
[408272035,1773337841224,-250.0,0.00015876,2]
[408272036,1773337841235,-300.0,0.00015876,2]
[408272037,1773337841245,-5000.0,0.00015876,2]
[408272038,1773337841255,-600.0,0.00015876,2]
[408272039,1773337841264,-250.0,0.00015876,2]
[408272040,1773337841273,-500.0,0.00015876,2]
[408272041,1773337841283,-300.0,0.00015876,2]
[408272042,1773337841294,-5000.0,0.00015876,2]
[408272043,1773337841304,-327.67148501,0.00015876,2]
[408272044,1773337841313,-500.0,0.00015876,2]
[408272045,1773337841325,-181.44918097,0.00015876,2]
[408272046,1773337841337,-545.0,0.00015876,2]
[408272047,1773337841348,-28700.0,0.000159,5]
[408272048,1773337841359,-1680.0,0.00015903,2]
[408272049,1773337841369,-420.0,0.00015913,2]
[408272050,1773337841379,-200.0,0.00015922,2]
[408272051,1773337841388,-839.83,0.00015931,2]
[408272052,1773337841399,-545.0,0.00015931,2]
[408272053,1773337841412,-1130.49,0.00015934,2]
[408272054,1773337841425,-545.0,0.00015986,2]
[408272055,1773337841435,-26860.74788954,0.00016015,2]
[408272056,1773337841446,-420.0,0.0001604,2]
[408272057,1773337841458,-545.0,0.00016041,2]
[408272058,1773337841468,-4000.0,0.00016093,2]
[408272059,1773337841480,-545.0,0.00016096,2]
[408272060,1773337841493,-255.0,0.00016119,2]
[408272061,1773337841503,-6166.67,0.0001612,2]
[408272062,1773337841514,-545.0,0.0001615,2]
[408272063,1773337841525,-26860.74788954,0.00016163,2]
[408272064,1773337841535,-839.83,0.00016205,2]
[408272065,1773337841544,-545.0,0.00016205,2]
[408272066,1773337841554,-1000.0,0.00016221,2]
[408272067,1773337841563,-1000.0,0.00016221,2]
[408272068,1773337841573,-1000.0,0.00016221,2]
[408272069,1773337841582,-1000.0,0.00016221,2]
[408272070,1773337841592,-312.31798352,0.00016221,2]
[408272071,1773337841603,-1000.0,0.00016221,2]
[408272072,1773337841613,-1000.0,0.00016221,2]
[408272073,1773337841623,-1000.0,0.00016221,2]
[408272074,1773337841632,-992.30019781,0.00016221,2]
[408272075,1773337841643,-168.3299599,0.00016221,2]
[408272076,1773337841653,-545.0,0.0001626,2]
[408272077,1773337841663,-26860.74788954,0.0001631,2]
[408272078,1773337841673,-545.0,0.00016315,2]
[408272079,1773337841683,-545.0,0.00016369,2]
[408272080,1773337841693,-553.76094671,0.00016424,2]
[408272081,1773337841703,-150.0,0.00016438,2]
[408272082,1773337841713,-500.0,0.00016438,2]
[408272083,1773337841725,-26860.74788954,0.00016458,2]
[408272084,1773337841735,-150.0,0.00016458,2]
[408272085,1773337841746,-202.690585,0.0001646,2]
[408272086,1773337841757,-200.0,0.0001647,2]
[408272087,1773337841767,-839.83,0.00016479,2]
[408272088,1773337841777,-150.0,0.00016493,2]
[408272089,1773337841787,-500.0,0.00016493,2]
[408272090,1773337841797,-150.0,0.00016548,2]
[408272091,1773337841807,-500.0,0.00016548,2]
[408272092,1773337841817,-250.58262965,0.00016602,2]
[408272093,1773337841827,-500.0,0.00016602,2]
[408272094,1773337841837,-26860.74788954,0.00016605,2]
[408272095,1773337841847,-500.0,0.00016657,2]
[408272096,1773337841858,-2954.42978653,0.0001669,2]
[408272097,1773337841868,-167.41148082,0.000167,3]
[408272098,1773337841879,-204.76259055,0.000167,3]
[408272099,1773337841889,-205.77202214,0.000167,3]
[408272100,1773337841901,-198.27551985,0.000167,3]
[408272101,1773337841911,-500.0,0.00016712,2]
[408272102,1773337841922,-1483.42040625,0.00016746,2]
[408272103,1773337841932,-938.08263821,0.00016746,2]
[408272104,1773337841942,-1208.77957433,0.00016746,2]
[408272105,1773337841952,-487.86945979,0.00016746,2]
[408272106,1773337841962,-26860.74788954,0.00016753,2]
[408272107,1773337841972,-151.0,0.00016753,2]
[408272108,1773337841984,-839.83,0.00016753,2]
[408272109,1773337841995,-300.0,0.00016755,2]
[408272110,1773337842005,-666.0,0.00016755,2]
[408272111,1773337842015,-500.0,0.00016755,2]
[408272112,1773337842025,-500.0,0.00016755,2]
[408272113,1773337842037,-500.0,0.00016755,2]
[408272114,1773337842048,-500.0,0.00016755,2]
[408272115,1773337842058,-500.0,0.00016755,2]
[408272116,1773337842069,-500.0,0.00016755,2]
[408272117,1773337842080,-500.0,0.00016755,2]
[408272118,1773337842090,-500.0,0.00016755,2]
[408272119,1773337842101,-297.89846423,0.00016755,2]
[408272120,1773337842111,-500.0,0.00016755,2]
[408272121,1773337842121,-551.6181156,0.00016755,2]
[408272122,1773337842136,-500.0,0.00016755,2]
[408272123,1773337842146,-500.0,0.00016755,2]
[408272124,1773337842156,-500.0,0.00016755,2]
[408272126,1773337842167,-539.98986878,0.00016755,2]
[408272127,1773337842179,-500.0,0.00016755,2]
[408272128,1773337842188,-500.0,0.00016755,2]
[408272129,1773337842199,-500.0,0.00016755,2]
[408272130,1773337842209,-500.0,0.00016755,2]
[408272131,1773337842220,-500.0,0.00016755,2]
[408272132,1773337842231,-1000.0,0.00016756,2]
[408272133,1773337842242,-1057.2304,0.00016756,2]
[408272134,1773337842252,-1174133.491,0.00016756,2]
[408272135,1773337842262,-32942.6924,0.00016756,2]
[408272136,1773337842273,-500.0,0.00016767,2]
[408272137,1773337842283,-360.72006406,0.00016768,2]
[408272138,1773337842293,-1039.63237117,0.00016768,2]
[408272140,1773337842303,-1526.17740878,0.00016768,2]
[408272141,1773337842314,-1500.0,0.00016768,2]
[408272142,1773337842324,-1000.0,0.00016768,2]
[408272143,1773337842334,-1500.0,0.00016768,2]
[408272144,1773337842344,-1500.0,0.00016768,2]
[408272145,1773337842353,-501.01772395,0.00016773,2]
[408272146,1773337842363,-500.0,0.00016773,2]
[408272147,1773337842374,-500.0,0.00016773,2]
[408272148,1773337842384,-500.0,0.00016773,2]
[408272149,1773337842396,-500.0,0.00016773,2]
[408272150,1773337842407,-554.45449383,0.00016773,2]
[408272151,1773337842424,-500.0,0.00016773,2]
[408272152,1773337842435,-500.0,0.00016773,2]
[408272153,1773337842445,-500.0,0.00016773,2]
[408272154,1773337842454,-283.69039474,0.00016773,2]
[408272155,1773337842466,-500.0,0.00016773,2]
[408272156,1773337842477,-500.0,0.00016773,2]
[408272157,1773337842491,-924.31464463,0.00016815,2]
[408272158,1773337842502,-500.0,0.00016822,2]
[408272159,1773337842512,-254.0,0.0001684,2]
[408272160,1773337842523,-300.0,0.00016852,2]
[408272161,1773337842534,-300.0,0.00016852,2]
[408272162,1773337842547,-300.0,0.00016852,2]
[408272163,1773337842557,-4681.9484587,0.00016853,2]
[408272164,1773337842567,-310119.2530137,0.00016853,2]
[408272165,1773337842578,-82445.1402375,0.00016853,2]
[408272166,1773337842589,-500.0,0.00016855,2]
[408272167,1773337842599,-500.0,0.00016855,2]
[408272168,1773337842610,-500.0,0.00016855,2]
[408272169,1773337842621,-500.0,0.00016855,2]
[408272170,1773337842632,-500.0,0.00016855,2]
[408272171,1773337842643,-500.0,0.00016855,2]
[408272172,1773337842653,-196.82,0.00016855,2]